fUST/lending_fUST_20250430
["ID","MTS","AMOUNT","RATE_DAILY","PERIOD"]
[359362510,1745950261990,-400.0,0.00031299,2]
[359362511,1745950261999,-4481.88,0.00031299,2]
[359362512,1745950262009,-1016.27,0.00031299,2]
[359362513,1745950262019,-1557.18,0.00031299,2]
[359362514,1745950262029,-6821.26,0.00031299,2]
[359362515,1745950262038,-5218.28,0.00031299,2]
[359362516,1745950262048,-2301.75,0.00031299,2]
[359362517,1745950262058,-499.69,0.00031299,2]
[359362518,1745950262068,-2340.36,0.00031299,2]
[359362519,1745950262078,-339.45459695,0.00031299,2]
[359362520,1745950262087,-4344.48,0.00031299,2]
[359362521,1745950262096,-735.44,0.00031319,2]
[359362522,1745950262106,-2027.24,0.00031319,2]
[359362523,1745950262116,-400.0,0.00031319,2]
[359362524,1745950262126,-151.0,0.00031319,7]
[359362525,1745950262135,-448.72,0.00031319,2]
[359362526,1745950262145,-796.85,0.00031319,2]
[359362527,1745950262154,-753.17,0.00031319,2]
[359362528,1745950262163,-2644.55,0.00031319,2]
[359362529,1745950262173,-151.0,0.00031319,7]
[359362530,1745950262183,-977.43,0.00031319,2]
[359362531,1745950262192,-400.0,0.00031319,2]
[359362532,1745950262201,-2032.37,0.00031319,2]
[359362533,1745950262211,-210.53577053,0.00031319,2]
[359362534,1745950262221,-606.65,0.00031319,2]
[359362535,1745950262230,-2282.85,0.00031319,2]
[359362536,1745950262239,-2537.29,0.00031319,2]
[359362537,1745950262251,-502.89,0.00031319,2]
[359362538,1745950262261,-400.0,0.00031319,2]
[359362539,1745950262270,-400.0,0.00031319,2]
[359362540,1745950262279,-400.0,0.00031319,2]
[359362541,1745950262289,-665.54,0.00031319,2]
[359362542,1745950262299,-2388.42,0.00031319,2]
[359362543,1745950262308,-1859.74,0.00031319,2]
[359362544,1745950262319,-2718.43,0.00031319,2]
[359362545,1745950262329,-502.81,0.00031319,2]
[359362546,1745950262339,-250.0,0.00031321,5]
[359362547,1745950262349,-400.0,0.00031331,2]
[359362548,1745950262359,-400.0,0.00031331,2]
[359362549,1745950262368,-859.28,0.00031331,2]
[359362550,1745950262378,-194.18806028,0.00031331,2]
[359362551,1745950262387,-510.13,0.00031331,2]
[359362552,1745950262398,-783.69,0.00031331,2]
[359362553,1745950262408,-515.96,0.00031331,2]
[359362554,1745950262419,-400.0,0.00031331,2]
[359362555,1745950262428,-836.06,0.00031331,2]
[359362556,1745950262437,-890.21,0.00031331,2]
[359362557,1745950262446,-400.0,0.00031331,2]
[359362558,1745950262456,-448.01,0.00031331,2]
[359362559,1745950262465,-469.6,0.00031331,2]
[359362560,1745950262475,-855.39,0.00031331,2]
[359362561,1745950262487,-400.0,0.00031331,2]
[359362562,1745950262498,-400.0,0.00031331,2]
[359362563,1745950262507,-537.48,0.00031331,2]
[359362564,1745950262516,-423.88,0.00031331,2]
[359362565,1745950262526,-500.96,0.00031331,2]
[359362566,1745950262536,-510.86,0.00031331,2]
[359362567,1745950262546,-400.0,0.00031331,2]
[359362568,1745950262555,-1044.99,0.00031331,2]
[359362569,1745950262566,-400.0,0.00031331,2]
[359362570,1745950262580,-400.0,0.00031331,2]
[359362571,1745950262589,-863.9,0.00031331,2]
[359362572,1745950262598,-936.0,0.00031331,2]
[359362573,1745950262607,-489.11,0.00031331,2]
[359362574,1745950262617,-928.32,0.00031331,2]
[359362575,1745950262627,-426.15,0.00031331,2]
[359362576,1745950262843,-1739.64,0.00031331,2]
[359362577,1745950262853,-1599.63,0.00031331,2]
[359362578,1745950262863,-450.72,0.00031331,2]
[359362579,1745950262873,-669.77,0.00031331,2]
[359362580,1745950262883,-400.0,0.00031331,2]
[359362581,1745950262892,-400.0,0.00031331,2]
[359362582,1745950262902,-400.0,0.00031331,2]
[359362583,1745950262911,-400.0,0.00031331,2]
[359362584,1745950262920,-1012.25,0.00031331,2]
[359362585,1745950262929,-1114.07,0.00031331,2]
[359362586,1745950262939,-400.0,0.00031331,2]
[359362587,1745950262948,-565.43,0.00031331,2]
[359362588,1745950262957,-792.61,0.00031331,2]
[359362589,1745950262967,-400.0,0.00031331,2]
[359362590,1745950262976,-400.0,0.00031331,2]
[359362591,1745950262985,-400.0,0.00031331,2]
[359362592,1745950262995,-618.32,0.00031331,2]
[359362593,1745950263004,-400.0,0.00031331,2]
[359362594,1745950263013,-400.0,0.00031331,2]
[359362595,1745950263023,-671.04,0.00031331,2]
[359362596,1745950263033,-400.0,0.00031331,2]
[359362597,1745950263043,-6629.8,0.00031331,2]
[359362598,1745950263054,-400.0,0.00031331,2]
[359362599,1745950263064,-400.0,0.00031331,2]
[359362600,1745950263078,-2228.71,0.00031331,2]
[359362601,1745950263088,-839.34,0.00031331,2]
[359362602,1745950263098,-540.99,0.00031331,2]
[359362603,1745950263108,-624.9,0.00031331,2]
[359362604,1745950263117,-1259.11,0.00031331,2]
[359362605,1745950263127,-400.0,0.00031331,2]
[359362606,1745950263138,-1654.28,0.00031331,2]
[359362607,1745950263148,-512.53,0.00031331,2]
[359362608,1745950263159,-400.0,0.00031331,2]
[359362609,1745950263169,-2401.37,0.00031331,2]
[359362610,1745950263178,-400.0,0.00031331,2]
[359362611,1745950263188,-3513.44,0.00031331,2]
[359362612,1745950263198,-745.97,0.00031331,2]
[359362613,1745950263208,-400.0,0.00031331,2]
[359362614,1745950263218,-1636.76,0.00031331,2]
[359362615,1745950263228,-401.59,0.00031331,2]
[359362616,1745950263238,-4763.75,0.00031331,2]
[359362617,1745950263248,-400.0,0.00031331,2]
[359362618,1745950263258,-811.55,0.00031331,2]
[359362619,1745950263268,-3915.94,0.00031331,2]
[359362620,1745950263279,-2053.69,0.00031331,2]
[359362621,1745950263289,-1013.28,0.00031331,2]
[359362622,1745950263299,-400.0,0.00031331,2]
[359362623,1745950263310,-2439.55,0.00031331,2]
[359362624,1745950263320,-400.0,0.00031331,2]
[359362625,1745950263331,-327.13027633,0.00031331,2]
[359362626,1745950263342,-499.68,0.00031331,2]
[359362627,1745950263352,-400.0,0.00031331,2]
[359362628,1745950263363,-1059.59,0.00031331,2]
[359362629,1745950263373,-400.0,0.00031331,2]
[359362630,1745950263383,-9541.72,0.00031331,2]
[359362631,1745950263393,-400.0,0.00031331,2]
[359362632,1745950263402,-1166.59,0.00031331,2]
[359362633,1745950263412,-400.0,0.00031331,2]
[359362634,1745950263423,-2079.05,0.00031331,2]
[359362635,1745950263434,-400.0,0.00031331,2]
[359362636,1745950263443,-400.0,0.00031331,2]
[359362637,1745950263453,-2602.27,0.00031331,2]
[359362638,1745950263462,-707.59,0.00031331,2]
[359362639,1745950263472,-400.0,0.00031331,2]
[359362640,1745950263485,-400.0,0.00031331,2]
[359362641,1745950263494,-584.7,0.00031331,2]
[359362642,1745950263503,-785.1,0.00031331,2]
[359362643,1745950263512,-400.0,0.00031331,2]
[359362644,1745950263522,-1689.93,0.00031331,2]
[359362645,1745950263532,-1489.78,0.00031331,2]
[359362646,1745950263542,-1238.14,0.00031331,2]
[359362647,1745950263553,-618.36,0.00031331,2]
[359362648,1745950263563,-400.0,0.00031331,2]
[359362649,1745950263575,-640.33,0.00031331,2]
[359362650,1745950263588,-1310.58,0.00031331,2]
[359362651,1745950263602,-400.0,0.00031331,2]
[359362652,1745950263617,-400.0,0.00031331,2]
[359362653,1745950263632,-586.04,0.00031331,2]
[359362654,1745950263644,-3604.88,0.00031332,2]
[359362655,1745950263658,-241.78971,0.00031332,7]
[359362656,1745950263672,-295.035174,0.00031332,7]
[359362657,1745950263685,-514.93,0.00031333,2]
[359362658,1745950263699,-627.52,0.00031333,2]
[359362659,1745950263714,-2104.16,0.00031333,2]
[359362660,1745950263728,-1287.35,0.00031333,2]
[359362661,1745950263742,-585.19,0.00031333,2]
[359362662,1745950263756,-590.39,0.00031333,2]
[359362663,1745950263769,-4064.61,0.00031333,2]
[359362664,1745950263782,-1120.73,0.00031333,2]
[359362665,1745950263794,-1942.02,0.00031333,2]
[359362666,1745950263806,-400.0,0.00031333,2]
[359362667,1745950263820,-610.09,0.00031333,2]
[359362668,1745950263836,-480.18,0.00031333,2]
[359362669,1745950263848,-1089.09,0.00031333,2]
[359362670,1745950263860,-526.98,0.00031333,2]
[359362671,1745950263871,-400.0,0.00031333,2]
[359362672,1745950263884,-400.0,0.00031333,2]
[359362673,1745950263896,-1028.38,0.00031333,2]
[359362674,1745950263910,-400.0,0.00031333,2]
[359362675,1745950263924,-1520.91,0.00031333,2]
[359362676,1745950263936,-400.0,0.00031333,2]
[359362677,1745950263951,-1053.59,0.00031333,2]
[359362678,1745950263965,-1239.71,0.00031333,2]
[359362679,1745950263980,-2205.18,0.00031333,2]
[359362680,1745950263994,-527.41,0.00031333,2]
[359362681,1745950264006,-2846.56,0.00031333,2]
[359362682,1745950264017,-2184.92,0.00031333,2]
[359362683,1745950264030,-817.29,0.00031333,2]
[359362684,1745950264043,-1394.02,0.00031333,2]
[359362685,1745950264058,-1320.77,0.00031333,2]
[359362686,1745950264074,-400.0,0.00031333,2]
[359362687,1745950264085,-1675.48,0.00031333,2]
[359362688,1745950264098,-400.0,0.00031333,2]
[359362689,1745950264111,-1080.97,0.00031341,2]
[359362690,1745950264124,-402.94,0.00031341,2]
[359362691,1745950264137,-432.99,0.00031341,2]
[359362692,1745950264148,-418.93,0.00031341,2]
[359362693,1745950264160,-400.0,0.00031341,2]
[359362694,1745950264170,-322.37858362,0.00031341,2]
[359362695,1745950264183,-400.0,0.00031341,2]
[359362696,1745950264195,-449.6,0.00031341,2]
[359362697,1745950264207,-400.0,0.00031341,2]
[359362698,1745950264219,-200.0,0.00031341,2]
[359362699,1745950264231,-729.14,0.00031341,2]
[359362700,1745950264243,-400.0,0.00031341,2]
[359362701,1745950264255,-400.0,0.00031341,2]
[359362702,1745950264268,-448.35,0.00031341,2]
[359362703,1745950264280,-400.0,0.00031341,2]
[359362704,1745950264292,-400.0,0.00031341,2]
[359362705,1745950264303,-413.51,0.00031341,2]
[359362706,1745950264315,-200.0,0.00031341,2]
[359362707,1745950264328,-1316.67,0.00031341,2]
[359362708,1745950264340,-658.51,0.00031341,2]
[359362709,1745950264352,-449.83,0.00031341,2]
[359362710,1745950264364,-200.0,0.00031341,2]
[359362711,1745950264375,-413.91,0.00031365,2]
[359362712,1745950264387,-500.0,0.00031373,5]
[359362713,1745950264399,-261.83469512,0.00031373,5]
[359362714,1745950264413,-500.0,0.00031373,5]
[359362715,1745950264425,-500.0,0.00031373,5]
[359362716,1745950264437,-500.0,0.00031373,5]
[359362717,1745950264449,-500.0,0.00031373,5]
[359362718,1745950264460,-500.0,0.00031373,5]
[359362719,1745950264472,-400.0,0.00031572,2]
[359362720,1745950264486,-400.0,0.00031573,2]
[359362721,1745950264497,-2129.67,0.00031573,2]
[359362722,1745950264509,-841.35,0.00031573,2]
[359362723,1745950264521,-597.93,0.00031573,2]
[359362724,1745950264533,-4477.77,0.00031573,2]
[359362725,1745950264545,-400.0,0.00031573,2]
[359362726,1745950264556,-400.0,0.00031573,2]
[359362727,1745950264569,-4481.88,0.00031573,2]
[359362728,1745950264583,-1016.27,0.00031573,2]
[359362729,1745950264595,-1557.18,0.00031573,2]
[359362730,1745950264606,-6821.26,0.00031573,2]
[359362731,1745950264619,-5218.28,0.00031573,2]
[359362732,1745950264630,-2301.75,0.00031573,2]
[359362733,1745950264644,-499.69,0.00031573,2]
[359362734,1745950264656,-2340.36,0.00031573,2]
[359362735,1745950264667,-4344.48,0.00031573,2]
[359362736,1745950264679,-735.44,0.00031593,2]
[359362737,1745950264690,-2027.24,0.00031593,2]
[359362738,1745950264702,-400.0,0.00031593,2]
[359362739,1745950264713,-448.72,0.00031593,2]
[359362740,1745950264724,-796.85,0.00031593,2]
[359362741,1745950264737,-753.17,0.00031593,2]
[359362742,1745950264749,-2644.55,0.00031593,2]
[359362743,1745950264762,-977.43,0.00031593,2]
[359362744,1745950264773,-400.0,0.00031593,2]
[359362745,1745950264784,-2032.37,0.00031593,2]
[359362746,1745950264795,-606.65,0.00031593,2]
[359362747,1745950264807,-2282.85,0.00031593,2]
[359362748,1745950264818,-2537.29,0.00031593,2]
[359362749,1745950264831,-502.89,0.00031593,2]
[359362750,1745950264843,-400.0,0.00031593,2]
[359362751,1745950264854,-400.0,0.00031593,2]
[359362752,1745950264865,-400.0,0.00031593,2]
[359362753,1745950264877,-665.54,0.00031593,2]
[359362754,1745950264888,-2388.42,0.00031593,2]
[359362755,1745950264901,-1859.74,0.00031593,2]
[359362756,1745950264913,-2718.43,0.00031593,2]
[359362757,1745950264925,-502.81,0.00031593,2]
[359362758,1745950264936,-400.0,0.00031605,2]
[359362759,1745950264949,-400.0,0.00031605,2]
[359362760,1745950264960,-859.28,0.00031605,2]
[359362761,1745950264971,-510.13,0.00031605,2]
[359362762,1745950264982,-783.69,0.00031605,2]
[359362763,1745950264994,-515.96,0.00031605,2]
[359362764,1745950265004,-400.0,0.00031605,2]
[359362765,1745950265015,-836.06,0.00031605,2]
[359362766,1745950265027,-890.21,0.00031605,2]
[359362767,1745950265039,-400.0,0.00031605,2]
[359362768,1745950265052,-448.01,0.00031605,2]
[359362769,1745950265063,-469.6,0.00031605,2]
[359362770,1745950265075,-855.39,0.00031605,2]
[359362771,1745950265087,-400.0,0.00031605,2]
[359362772,1745950265098,-400.0,0.00031605,2]
[359362773,1745950265109,-537.48,0.00031605,2]
[359362774,1745950265120,-423.88,0.00031605,2]
[359362775,1745950265134,-500.96,0.00031605,2]
[359362776,1745950265145,-510.86,0.00031605,2]
[359362777,1745950265156,-233.44018668,0.00031605,2]
[359362778,1745950265167,-1044.99,0.00031605,2]
[359362779,1745950265179,-400.0,0.00031605,2]
[359362780,1745950265190,-400.0,0.00031605,2]
[359362781,1745950265201,-863.9,0.00031605,2]
[359362782,1745950265212,-936.0,0.00031605,2]
[359362783,1745950265223,-489.11,0.00031605,2]
[359362784,1745950265234,-928.32,0.00031605,2]
[359362785,1745950265245,-426.15,0.00031605,2]
[359362786,1745950265256,-1739.64,0.00031605,2]
[359362787,1745950265267,-1599.63,0.00031605,2]
[359362788,1745950265278,-450.72,0.00031605,2]
[359362789,1745950265290,-669.77,0.00031605,2]
[359362790,1745950265301,-400.0,0.00031605,2]
[359362791,1745950265313,-400.0,0.00031605,2]
[359362792,1745950265325,-400.0,0.00031605,2]
[359362793,1745950265336,-400.0,0.00031605,2]
[359362794,1745950265348,-1012.25,0.00031605,2]
[359362795,1745950265359,-1114.07,0.00031605,2]
[359362796,1745950265370,-400.0,0.00031605,2]
[359362797,1745950265381,-565.43,0.00031605,2]
[359362798,1745950265392,-792.61,0.00031605,2]
[359362799,1745950265403,-400.0,0.00031605,2]
[359362800,1745950265415,-400.0,0.00031605,2]
[359362801,1745950265427,-400.0,0.00031605,2]
[359362802,1745950265438,-618.32,0.00031605,2]
[359362803,1745950265450,-400.0,0.00031605,2]
[359362804,1745950265460,-400.0,0.00031605,2]
[359362805,1745950265472,-671.04,0.00031605,2]
[359362806,1745950265487,-400.0,0.00031605,2]
[359362807,1745950265497,-6629.8,0.00031605,2]
[359362808,1745950265716,-400.0,0.00031605,2]
[359362809,1745950265744,-400.0,0.00031605,2]
[359362810,1745950265755,-2228.71,0.00031605,2]
[359362811,1745950265765,-839.34,0.00031605,2]
[359362812,1745950265775,-540.99,0.00031605,2]
[359362813,1745950265784,-624.9,0.00031605,2]
[359362814,1745950265794,-1259.11,0.00031605,2]
[359362815,1745950265803,-399.61798078,0.00031605,2]
[359362816,1745950265812,-1654.28,0.00031605,2]
[359362817,1745950265821,-512.53,0.00031605,2]
[359362818,1745950265831,-400.0,0.00031605,2]
[359362819,1745950265840,-2401.37,0.00031605,2]
[359362820,1745950265850,-400.0,0.00031605,2]
[359362821,1745950265859,-3513.44,0.00031605,2]
[359362822,1745950265869,-745.97,0.00031605,2]
[359362823,1745950265878,-341.03196815,0.00031605,2]
[359362824,1745950265887,-1636.76,0.00031605,2]
[359362825,1745950265897,-401.59,0.00031605,2]
[359362826,1745950265908,-4763.75,0.00031605,2]
[359362827,1745950265918,-400.0,0.00031605,2]
[359362828,1745950265928,-811.55,0.00031605,2]
[359362829,1745950265938,-3915.94,0.00031605,2]
[359362830,1745950265947,-2053.69,0.00031605,2]
[359362831,1745950265957,-1013.28,0.00031605,2]
[359362832,1745950265968,-400.0,0.00031605,2]
[359362833,1745950265977,-2439.55,0.00031605,2]
[359362834,1745950265987,-400.0,0.00031605,2]
[359362835,1745950265997,-499.68,0.00031605,2]
[359362836,1745950266006,-400.0,0.00031605,2]
[359362837,1745950266016,-1059.59,0.00031605,2]
[359362838,1745950266025,-400.0,0.00031605,2]
[359362839,1745950266035,-9541.72,0.00031605,2]
[359362840,1745950266044,-400.0,0.00031605,2]
[359362841,1745950266054,-1166.59,0.00031605,2]
[359362842,1745950266063,-151.0,0.00031605,7]
[359362843,1745950266074,-400.0,0.00031605,2]
[359362844,1745950266084,-2079.05,0.00031605,2]
[359362845,1745950266093,-400.0,0.00031605,2]
[359362846,1745950266103,-151.0,0.00031605,7]
[359362847,1745950266112,-400.0,0.00031605,2]
[359362848,1745950266122,-2602.27,0.00031605,2]
[359362849,1745950266131,-707.59,0.00031605,2]
[359362850,1745950266141,-151.0,0.00031605,7]
[359362851,1745950266150,-400.0,0.00031605,2]
[359362852,1745950266159,-400.0,0.00031605,2]
[359362853,1745950266169,-584.7,0.00031605,2]
[359362854,1745950266179,-785.1,0.00031605,2]
[359362855,1745950266189,-400.0,0.00031605,2]
[359362856,1745950266198,-1689.93,0.00031605,2]
[359362857,1745950266207,-1489.78,0.00031605,2]
[359362858,1745950266217,-1238.14,0.00031605,2]
[359362859,1745950266227,-618.36,0.00031605,2]
[359362860,1745950266236,-400.0,0.00031605,2]
[359362861,1745950266246,-151.0,0.00031605,7]
[359362862,1745950266256,-1310.58,0.00031605,2]
[359362863,1745950266265,-640.33,0.00031605,2]
[359362864,1745950266275,-151.0,0.00031605,7]
[359362865,1745950266284,-151.0,0.00031605,7]
[359362866,1745950266293,-151.0,0.00031605,7]
[359362867,1745950266304,-400.0,0.00031605,2]
[359362868,1745950266313,-400.0,0.00031605,2]
[359362869,1745950266322,-586.04,0.00031605,2]
[359362870,1745950266334,-3604.88,0.00031606,2]
[359362871,1745950266344,-151.0,0.00031606,7]
[359362872,1745950266353,-151.0,0.00031606,7]
[359362873,1745950266363,-151.0,0.00031606,7]
[359362874,1745950266373,-151.0,0.00031606,7]
[359362875,1745950266383,-151.0,0.00031606,7]
[359362876,1745950266392,-514.93,0.00031607,2]
[359362877,1745950266402,-627.52,0.00031607,2]
[359362878,1745950266411,-2104.16,0.00031607,2]
[359362879,1745950266421,-1287.35,0.00031607,2]
[359362880,1745950266430,-585.19,0.00031607,2]
[359362881,1745950266441,-590.39,0.00031607,2]
[359362882,1745950266451,-4064.61,0.00031607,2]
[359362883,1745950266460,-1120.73,0.00031607,2]
[359362884,1745950266469,-1942.02,0.00031607,2]
[359362885,1745950266480,-400.0,0.00031607,2]
[359362886,1745950266491,-610.09,0.00031607,2]
[359362887,1745950266501,-480.18,0.00031607,2]
[359362888,1745950266511,-1089.09,0.00031607,2]
[359362889,1745950266520,-526.98,0.00031607,2]
[359362890,1745950266530,-239.64498711,0.00031607,2]
[359362891,1745950266539,-516.48451696,0.00031607,2]
[359362892,1745950266548,-1028.38,0.00031607,2]
[359362893,1745950266568,-400.0,0.00031607,2]
[359362894,1745950266581,-1520.91,0.00031607,2]
[359362895,1745950266591,-400.0,0.00031607,2]
[359362896,1745950266601,-1053.59,0.00031607,2]
[359362897,1745950266612,-1239.71,0.00031607,2]
[359362898,1745950266621,-2205.18,0.00031607,2]
[359362899,1745950266632,-527.41,0.00031607,2]
[359362900,1745950266642,-2846.56,0.00031607,2]
[359362901,1745950266654,-2184.92,0.00031607,2]
[359362902,1745950266664,-817.29,0.00031607,2]
[359362903,1745950266674,-1394.02,0.00031607,2]
[359362904,1745950266684,-1320.77,0.00031607,2]
[359362905,1745950266694,-400.0,0.00031607,2]
[359362906,1745950266703,-1675.48,0.00031607,2]
[359362907,1745950266714,-400.0,0.00031607,2]
[359362908,1745950266723,-1080.97,0.00031615,2]
[359362909,1745950266733,-402.94,0.00031615,2]
[359362910,1745950266743,-432.99,0.00031615,2]
[359362911,1745950266753,-418.93,0.00031615,2]
[359362912,1745950266763,-400.0,0.00031615,2]
[359362913,1745950266773,-400.0,0.00031615,2]
[359362914,1745950266783,-449.6,0.00031615,2]
[359362915,1745950266793,-400.0,0.00031615,2]
[359362916,1745950266802,-729.14,0.00031615,2]
[359362917,1745950266812,-400.0,0.00031615,2]
[359362918,1745950266822,-400.0,0.00031615,2]
[359362919,1745950266834,-448.35,0.00031615,2]
[359362920,1745950266844,-400.0,0.00031615,2]
[359362921,1745950266854,-400.0,0.00031615,2]
[359362922,1745950266864,-413.51,0.00031615,2]
[359362923,1745950266875,-1316.67,0.00031615,2]
[359362924,1745950266885,-658.51,0.00031615,2]
[359362925,1745950266895,-449.83,0.00031615,2]
[359362926,1745950266907,-488.98186387,0.00031616,5]
[359362927,1745950266917,-413.91,0.00031639,2]
[359362928,1745950266927,-400.0,0.00031846,2]
[359362929,1745950266940,-400.0,0.00031847,2]
[359362930,1745950266951,-2129.67,0.00031847,2]
[359362931,1745950266961,-841.35,0.00031847,2]
[359362932,1745950266971,-597.93,0.00031847,2]
[359362933,1745950266980,-4477.77,0.00031847,2]
[359362934,1745950266990,-441.28471697,0.00031847,2]
[359362935,1745950267000,-228.2316364,0.00031847,2]
[359362936,1745950267011,-4481.88,0.00031847,2]
[359362937,1745950267020,-1016.27,0.00031847,2]
[359362938,1745950267030,-1557.18,0.00031847,2]
[359362939,1745950267040,-6821.26,0.00031847,2]
[359362940,1745950267050,-5218.28,0.00031847,2]
[359362941,1745950267060,-2301.75,0.00031847,2]
[359362942,1745950267070,-499.69,0.00031847,2]
[359362943,1745950267081,-2340.36,0.00031847,2]
[359362944,1745950267090,-4344.48,0.00031847,2]
[359362945,1745950267100,-735.44,0.00031867,2]
[359362946,1745950267110,-2027.24,0.00031867,2]
[359362947,1745950267119,-400.0,0.00031867,2]
[359362948,1745950267129,-448.72,0.00031867,2]
[359362949,1745950267139,-796.85,0.00031867,2]
[359362950,1745950267148,-753.17,0.00031867,2]
[359362951,1745950267158,-2644.55,0.00031867,2]
[359362952,1745950267168,-977.43,0.00031867,2]
[359362953,1745950267177,-400.0,0.00031867,2]
[359362954,1745950267188,-2032.37,0.00031867,2]
[359362955,1745950267198,-606.65,0.00031867,2]
[359362956,1745950267209,-2282.85,0.00031867,2]
[359362957,1745950267220,-2537.29,0.00031867,2]
[359362958,1745950267231,-502.89,0.00031867,2]
[359362959,1745950267242,-400.0,0.00031867,2]
[359362960,1745950267253,-400.0,0.00031867,2]
[359362961,1745950267264,-400.0,0.00031867,2]
[359362962,1745950267275,-665.54,0.00031867,2]
[359362963,1745950267285,-2388.42,0.00031867,2]
[359362964,1745950267295,-1859.74,0.00031867,2]
[359362965,1745950267305,-2718.43,0.00031867,2]
[359362966,1745950267315,-502.81,0.00031867,2]
[359362967,1745950267325,-350.0,0.00031868,5]
[359362968,1745950267335,-150.0,0.00031873,5]
[359362969,1745950267345,-400.0,0.00031879,2]
[359362970,1745950267354,-400.0,0.00031879,2]
[359362971,1745950267364,-859.28,0.00031879,2]
[359362972,1745950267373,-510.13,0.00031879,2]
[359362973,1745950267385,-515.96,0.00031879,2]
[359362974,1745950267395,-783.69,0.00031879,2]
[359362975,1745950267405,-400.0,0.00031879,2]
[359362976,1745950267415,-836.06,0.00031879,2]
[359362977,1745950267424,-890.21,0.00031879,2]
[359362978,1745950267434,-400.0,0.00031879,2]
[359362979,1745950267444,-448.01,0.00031879,2]
[359362980,1745950267453,-469.6,0.00031879,2]
[359362981,1745950267463,-855.39,0.00031879,2]
[359362982,1745950267473,-400.0,0.00031879,2]
[359362983,1745950267485,-400.0,0.00031879,2]
[359362984,1745950267494,-537.48,0.00031879,2]
[359362985,1745950267504,-423.88,0.00031879,2]
[359362986,1745950267514,-500.96,0.00031879,2]
[359362987,1745950267523,-510.86,0.00031879,2]
[359362988,1745950267534,-1044.99,0.00031879,2]
[359362989,1745950267544,-400.0,0.00031879,2]
[359362990,1745950267553,-400.0,0.00031879,2]
[359362991,1745950267564,-863.9,0.00031879,2]
[359362992,1745950267575,-936.0,0.00031879,2]
[359362993,1745950267585,-489.11,0.00031879,2]
[359362994,1745950267594,-928.32,0.00031879,2]
[359362995,1745950267603,-426.15,0.00031879,2]
[359362996,1745950267612,-1739.64,0.00031879,2]
[359362997,1745950267625,-1599.63,0.00031879,2]
[359362998,1745950267635,-450.72,0.00031879,2]
[359362999,1745950267644,-669.77,0.00031879,2]
[359363000,1745950267653,-400.0,0.00031879,2]
[359363001,1745950267663,-400.0,0.00031879,2]
[359363002,1745950267672,-400.0,0.00031879,2]
[359363003,1745950267682,-400.0,0.00031879,2]
[359363004,1745950267691,-1012.25,0.00031879,2]
[359363005,1745950267700,-1114.07,0.00031879,2]
[359363006,1745950267710,-400.0,0.00031879,2]
[359363007,1745950267719,-565.43,0.00031879,2]
[359363008,1745950267729,-792.61,0.00031879,2]
[359363009,1745950267739,-400.0,0.00031879,2]